bitfinex-derivatives/quotes_BNBF0:USTF0_20251220
["timestamp","ask_amount","ask_price","bid_price","bid_amount"]
[1766223356267,0.87358106,854.23,853.24,1.16879885]
[1766223357268,0.20379122,854.07,853.25,1.16879885]
[1766223358070,0.20379122,854.07,853.26,1.16879885]
[1766223358271,0.87358106,854.2,853.26,1.16879885]
[1766223358572,0.20377869,854.18,853.26,1.16879885]
[1766223359171,1.07735975,854.18,853.29,1.16879885]
[1766223360766,0.20377869,854.18,853.29,1.16879885]
[1766223360968,1.07936404,854.18,853.29,1.16879885]
[1766223383892,0.20377869,854.18,853.29,1.16879885]
[1766223384093,1.07939567,854.18,853.29,1.16879885]
[1766223400206,1.07949613,854.18,853.29,1.16879885]
[1766223403006,0.87571744,854.19,853.3,1.16879885]
[1766223403205,0.20376735,854.27,853.4,1.16879885]
[1766223403407,0.20376735,854.27,853.39,1.16879885]
[1766223404310,1.16477475,854.53,853.46,1.16879885]
[1766223404509,1.16477475,854.57,853.5,1.16879885]
[1766223404705,0.20371368,854.46,853.5,1.16879885]
[1766223405406,0.20371368,854.46,853.48,1.16879885]
[1766223406308,0.20371368,854.46,853.46,1.16879885]
[1766223407412,0.20371368,854.46,853.49,1.16879885]
[1766223408108,0.20371368,854.46,853.52,1.16879885]
[1766223408509,0.20371368,854.46,853.5,1.16879885]
[1766223409316,0.20371368,854.46,853.49,1.16879885]
[1766223410317,0.20371368,854.46,853.48,1.16879885]
[1766223411120,0.20371368,854.46,853.47,1.16879885]
[1766223412417,0.20371368,854.46,853.5,1.16879885]
[1766223413321,0.20371368,854.46,853.48,1.16879885]
[1766223413521,0.20371368,854.46,853.49,1.16879885]
[1766223414223,0.20371368,854.46,853.48,1.16879885]
[1766223415418,0.20371368,854.46,853.47,1.16879885]
[1766223417221,0.20371368,854.46,853.46,1.16879885]
[1766223418224,0.20371368,854.46,853.45,1.16879885]
[1766223420326,1.16477475,854.84,853.45,1.16879885]
[1766223420623,0.20368029,854.59,853.52,1.16879885]
[1766223421425,0.20368029,854.59,853.53,1.16879885]
[1766223422226,0.20368029,854.59,853.52,1.16879885]
[1766223424333,0.20368029,854.59,853.51,1.16879885]
[1766223425231,0.20368029,854.59,853.5,1.16879885]
[1766223427437,0.20368029,854.59,853.49,1.16879885]
[1766223428840,0.20368029,854.59,853.48,1.16879885]
[1766223431238,0.20368029,854.59,853.47,1.16879885]
[1766223435344,0.20368029,854.59,853.31,1.75319827]
[1766223435345,0.20368029,854.59,853.46,1.16879885]
[1766223440952,1.16477475,855.02,853.46,1.16879885]
[1766223443648,1.16477475,855.02,853.47,1.16879885]
[1766223444250,1.16477475,855.01,853.47,1.16879885]
[1766223446954,0.20367254,854.63,853.47,1.16879885]
[1766223447349,0.20367254,854.63,853.48,1.16879885]
[1766223450456,0.20367254,854.63,853.49,1.16879885]
[1766223452355,0.20367254,854.63,853.5,1.16879885]
[1766223453257,0.20367254,854.63,853.51,1.16879885]
[1766223454355,0.20367254,854.63,853.52,1.16879885]
[1766223455259,0.20367254,854.63,853.46,1.16879885]
[1766223455559,0.20367254,854.63,853.33,1.16879885]
[1766223455860,0.20367254,854.63,853.28,1.16879885]
[1766223456074,1.36844729,854.63,853.21,46.62736911]
[1766223456262,0.87344882,854.47,853.21,46.62736911]
[1766223456462,0.87344882,854.43,853.21,46.62736911]
[1766223456967,0.87344882,854.42,853.21,46.62736911]
[1766223457167,0.87344882,854.4,853.21,46.62736911]
[1766223458165,0.87344882,854.41,853.21,46.62736911]
[1766223458368,0.87344882,854.4,853.21,46.62736911]
[1766223460470,0.87344882,854.39,853.21,46.62736911]
[1766223461173,0.87344882,854.4,853.21,46.62736911]
[1766223461369,0.87344882,854.39,853.21,46.62736911]
[1766223463275,0.87344882,854.4,853.21,46.62736911]
[1766223465375,0.87344882,854.41,853.21,46.62736911]
[1766223466370,0.87344882,854.42,853.21,46.62736911]
[1766223468273,0.87344882,854.43,853.21,46.62736911]
[1766223469277,0.87344882,854.44,853.21,46.62736911]
[1766223471274,0.87344882,854.45,853.21,46.62736911]
[1766223473277,0.87344882,854.46,853.21,46.62736911]
[1766223475281,0.87344882,854.47,853.21,46.62736911]
[1766223478283,0.87344882,854.48,853.21,46.62736911]
[1766223482389,0.87344882,854.49,853.21,46.62736911]
[1766223491390,0.87344882,854.48,853.21,46.62736911]
[1766223492091,0.87344882,854.51,853.21,46.62736911]
[1766223492291,0.87344882,854.56,853.21,46.62736911]
[1766223494292,0.87344882,854.55,853.21,46.62736911]
[1766223496394,0.87344882,854.54,853.21,46.62736911]
[1766223498297,0.87344882,854.53,853.21,46.62736911]
[1766223500403,0.87344882,854.52,853.21,46.62736911]
[1766223501306,0.87344882,854.51,853.21,46.62736911]
[1766223503207,0.87344882,854.5,853.21,46.62736911]
[1766223504402,0.87344882,854.49,853.21,46.62736911]
[1766223505201,0.87344882,854.48,853.21,47.79616796]
[1766223506406,0.87344882,854.47,853.21,47.79616796]
[1766223507403,0.87344882,854.46,853.22,1.16879885]
[1766223508306,0.87344882,854.45,853.24,1.16879885]
[1766223509303,0.87344882,854.44,853.25,1.16879885]
[1766223510307,0.87344882,854.43,853.26,1.16879885]
[1766223511207,0.87344882,854.42,853.26,1.16879885]
[1766223511407,0.87344882,854.41,853.27,1.16879885]
[1766223512307,0.87344882,854.4,853.29,1.16879885]
[1766223513308,0.87344882,854.38,853.31,1.16879885]
[1766223514206,0.87344882,854.37,853.31,1.16879885]
[1766223514403,0.87344882,854.35,853.34,1.16879885]
[1766223515308,0.87344882,854.33,853.36,1.16879885]
[1766223530122,0.87344882,854.32,853.36,1.16879885]
[1766223537226,0.87344882,854.32,853.37,1.16879885]
[1766223538222,0.87344882,854.31,853.37,1.16879885]
[1766223543231,0.87344882,854.31,853.38,1.16879885]
[1766223543933,0.87344882,854.31,853.37,1.16879885]
[1766223544134,0.87344882,854.31,853.38,1.16879885]
[1766223545130,0.87344882,854.3,853.38,1.16879885]
[1766223548134,0.87344882,854.29,853.39,1.16879885]
[1766223550034,0.87344882,854.28,853.39,1.16879885]
[1766223550339,0.87344882,854.28,853.4,1.16879885]
[1766223551138,0.87344882,854.28,853.41,1.16879885]
[1766223552142,0.87344882,854.27,853.42,1.16879885]
[1766223568755,0.87344882,854.37,853.52,1.16879885]
[1766223569151,0.87344882,854.39,853.5,1.16879885]
[1766223570155,0.87344882,854.4,853.49,1.16879885]
[1766223570855,0.87344882,854.32,853.42,1.16879885]
[1766223571056,0.87344882,854.32,853.41,1.16879885]
[1766223572453,0.87344882,854.29,853.38,1.16879885]
[1766223574460,0.87344882,854.27,853.36,1.16879885]
[1766223575458,0.87344882,854.22,853.31,1.16879885]
[1766223577060,0.87344882,854.23,853.31,1.16879885]
[1766223578156,0.87344882,854.23,853.3,1.16879885]
[1766223580161,0.87344882,854.24,853.3,1.16879885]
[1766223582163,0.87344882,854.24,853.29,1.16879885]
[1766223585164,0.87344882,854.25,853.29,1.16879885]
[1766223589167,0.87344882,854.25,853.28,1.16879885]
[1766223593165,0.87344882,854.26,853.28,1.16879885]
[1766223607973,0.87344882,854.23,853.25,1.16879885]
[1766223608269,1.74716212,854.54,853.2,0.20367254]
[1766223608270,0.87344882,854.19,853.2,1.37247139]
[1766223610370,0.87344882,854.2,853.2,0.20367254]
[1766223611074,0.87344882,854.18,853.2,0.20367254]
[1766223613075,0.87344882,854.18,853.18,7.35498155]
[1766223613278,0.87344882,854.08,853.18,7.35498155]
[1766223614376,0.87344882,854.09,853.18,7.35498155]
[1766223615472,0.87344882,854.1,853.18,7.35498155]
[1766223616374,0.87344882,854.11,853.18,7.35498155]
[1766223618379,1.16477475,854.27,853.18,7.35498155]
[1766223618380,0.87344882,854.12,853.18,7.35498155]
[1766223620079,0.87344882,854.13,853.18,7.35498155]
[1766223622385,0.87344882,854.14,853.18,7.35498155]
[1766223623389,0.87344882,854.21,853.18,7.35498155]
[1766223623585,0.87344882,854.22,853.18,7.35498155]
[1766223623784,1.16477475,854.42,853.18,7.35498155]
[1766223626182,1.16477475,854.41,853.18,7.35498155]
[1766223627087,0.87595923,854.26,853.18,7.35498155]
[1766223627283,0.87595923,854.22,853.18,7.35498155]
[1766223627689,0.87595923,854.19,853.18,7.35498155]
[1766223630086,0.87595923,854.14,853.18,7.35498155]
[1766223630290,0.87595923,854.12,853.18,7.35498155]
[1766223630490,0.87595923,854.13,853.18,7.35498155]
[1766223631190,0.87595923,854.12,853.18,7.35498155]
[1766223631386,0.87595923,854.13,853.18,7.35498155]
[1766223632091,0.87595923,854.12,853.18,7.35498155]
[1766223632387,0.87595923,854.13,853.18,7.35498155]
[1766223633292,0.87595923,854.12,853.18,7.35498155]
[1766223633493,0.87595923,854.13,853.18,7.35498155]
[1766223634093,0.87595923,854.12,853.18,7.35498155]
[1766223634295,0.87595923,854.13,853.18,7.35498155]
[1766223647102,0.20381151,853.98,853.18,7.35498155]
[1766223657808,0.20381151,853.98,853.04,1.16879885]
[1766223659209,0.20381151,853.98,853.05,1.16879885]
[1766223662414,0.20381151,853.98,853.06,1.16879885]
[1766223664514,0.20381151,853.98,853.07,1.16879885]
[1766223665318,0.20381151,853.98,853.08,1.16879885]
[1766223667422,0.20381151,853.98,853.09,1.16879885]
[1766223668319,0.20381151,853.98,853.1,1.16879885]
[1766223671527,0.20381151,853.98,853.11,1.16879885]
[1766223676133,1.0801848,853.98,853.03,1.16879885]
[1766223676339,0.87637329,853.94,853.01,6.22825191]
[1766223677439,0.87637329,853.95,853.01,6.22825191]
[1766223678239,0.87637329,853.94,853.01,6.22825191]
[1766223678440,0.87637329,853.95,853.01,6.22825191]
[1766223680438,0.87637329,853.96,853.01,6.22825191]
[1766223682345,0.87637329,853.97,853.01,6.22825191]
[1766223683845,0.87637329,853.96,853.01,6.22825191]
[1766223685545,0.87637329,853.95,853.01,6.22825191]
[1766223691354,0.87637329,853.96,853.01,6.22825191]
[1766223693054,0.87637329,853.88,853.01,6.22825191]
[1766223693354,0.87637329,853.89,853.01,6.22825191]
[1766223695453,0.87637329,853.9,853.01,6.22825191]
[1766223697354,0.87637329,853.91,853.01,6.22825191]
[1766223701356,0.87637329,853.92,853.01,6.22825191]
[1766223707459,0.87637329,853.93,853.01,6.22825191]
[1766223713968,0.87637329,853.92,853.01,6.22825191]
[1766223720472,0.87637329,853.91,853.01,6.22825191]
[1766223725369,0.87637329,853.9,853.01,6.22825191]
[1766223728373,0.87637329,853.89,853.01,6.22825191]
[1766223730476,0.87637329,853.88,853.01,6.22825191]
[1766223732381,0.87637329,853.87,853.01,6.22825191]
[1766223733383,0.87637329,853.86,853.01,6.22825191]
[1766223735480,0.87637329,853.85,853.01,6.22825191]
[1766223737484,0.87637329,853.84,853.01,6.22825191]
[1766223743983,0.87637329,853.83,853.01,6.22825191]
[1766223746385,0.87637329,853.82,853.01,6.22825191]
[1766223750493,0.87637329,853.81,853.01,6.22825191]
[1766223750990,1.16477475,853.96,853.01,6.22825191]
[1766223751288,0.87799468,853.81,853.01,6.22825191]
[1766223752195,0.87799468,853.8,853.01,6.22825191]
[1766223752489,0.87799468,853.79,853.01,6.22825191]
[1766223780412,0.87799468,853.79,852.94,1.16879885]
[1766223803735,0.87799468,853.82,852.96,1.16879885]
[1766223804035,0.87799468,853.81,852.96,1.16879885]
[1766223804236,0.87799468,853.82,852.95,1.16879885]
[1766223805635,1.16477475,853.97,852.95,1.16879885]
[1766223805836,0.87822652,853.82,852.95,1.16879885]
[1766223810236,0.87822652,853.83,852.95,1.16879885]
[1766223813250,0.87822652,853.83,852.94,1.16879885]
[1766223822954,0.87822652,853.91,853.02,1.16879885]
[1766223823254,0.87822652,853.92,853.01,1.16879885]
[1766223824254,0.87822652,853.93,853.01,1.16879885]
[1766223824554,0.87822652,853.94,853.02,1.16879885]
[1766223825355,0.87822652,853.94,852.9,0.20383479]
[1766223825356,0.87822652,853.94,853.01,1.16879885]
[1766223826252,0.87822652,853.95,853.01,1.16879885]
[1766223827252,0.87822652,853.95,853.0,1.16879885]
[1766223829361,0.87822652,853.96,853.0,1.16879885]
[1766223830362,0.87822652,853.96,852.99,1.16879885]
[1766223831765,0.87822652,854.06,853.09,1.16879885]
[1766223832164,0.87822652,854.07,853.08,1.16879885]
[1766223833367,0.87822652,854.08,853.07,1.16879885]
[1766223834368,0.87822652,854.09,853.07,1.16879885]
[1766223835164,0.87822652,854.09,853.06,1.16879885]
[1766223836166,0.87822652,854.1,853.06,1.16879885]
[1766223836468,0.87822652,854.1,853.05,1.16879885]
[1766223837268,0.87822652,854.11,853.05,1.16879885]
[1766223838369,0.87822652,854.11,853.04,1.16879885]
[1766223841272,0.87822652,854.12,853.04,1.16879885]
[1766223842273,0.87822652,854.12,853.03,1.16879885]
[1766223844376,0.87822652,854.13,853.03,1.16879885]
[1766223846378,0.87822652,854.13,853.02,1.16879885]
[1766223849179,0.87822652,854.14,853.02,1.16879885]
[1766223850978,0.87822652,854.33,853.22,1.16879885]
[1766223851178,0.20378346,854.31,853.22,1.16879885]
[1766223851382,0.20378346,854.31,853.2,1.16879885]
[1766223852279,0.20378346,854.31,853.19,1.16879885]
[1766223853383,0.20378346,854.31,853.18,1.16879885]
[1766223855483,0.20378346,854.31,853.17,1.16879885]
[1766223856285,0.20378346,854.31,853.16,1.16879885]
[1766223858285,0.20378346,854.31,853.15,1.16879885]
[1766223861387,0.20378346,854.31,853.14,1.16879885]
[1766223864087,0.20378346,854.31,853.15,1.16879885]
[1766223865188,0.20378346,854.31,853.14,1.16879885]
[1766223871399,0.87822652,854.44,853.14,1.16879885]
[1766223871599,0.87822652,854.62,853.33,1.16879885]
[1766223871803,0.20373097,854.53,853.33,1.16879885]
[1766223872303,0.20373097,854.53,853.32,1.16879885]
[1766223873297,0.20373097,854.53,853.31,1.16879885]
[1766223875500,0.20373097,854.53,853.3,1.16879885]
[1766223876203,0.20373097,854.53,853.31,1.16879885]
[1766223876405,0.20373097,854.53,853.3,1.16879885]
[1766223883811,0.20373097,854.53,853.32,1.16879885]
[1766223890412,0.20373097,854.53,853.33,1.16879885]
[1766223898324,0.20373097,854.53,853.34,1.16879885]
[1766223901228,0.20373097,854.53,853.29,1.16879885]
[1766223901428,0.20373097,854.53,853.3,1.16879885]
[1766223903125,0.20373097,854.53,853.31,1.16879885]
[1766223904331,0.20373097,854.53,853.32,1.16879885]
[1766223905230,0.20373097,854.53,853.33,1.16879885]
[1766223907234,0.20373097,854.53,853.34,1.16879885]
[1766223908435,1.08195749,854.53,853.35,1.16879885]
[1766223909334,0.87822652,854.51,853.37,1.16879885]
[1766223910338,0.87822652,854.5,853.38,1.16879885]
[1766223913340,0.87822652,854.49,853.38,1.16879885]
[1766223914233,0.87822652,854.49,853.39,1.16879885]
[1766223917236,0.87822652,854.48,853.4,1.16879885]
[1766223920538,0.87822652,854.47,853.41,1.16879885]
[1766223922238,0.87822652,854.46,853.41,1.16879885]
[1766223923342,0.87822652,854.46,853.42,1.16879885]
[1766223924145,0.87822652,854.45,853.41,1.16879885]
[1766223924338,0.87822652,854.45,853.42,1.16879885]
[1766223925447,0.87822652,854.44,853.42,1.16879885]
[1766223926442,0.87822652,854.44,853.43,1.16879885]
[1766223927354,0.87822652,854.43,853.43,1.16879885]
[1766223928145,0.87822652,854.43,853.44,1.16879885]
[1766223928348,0.87822652,854.42,853.44,1.16879885]
[1766223929343,0.87822652,854.42,853.32,4.54574519]
[1766223929344,0.87822652,854.41,853.45,1.16879885]
[1766223930447,0.87822652,854.4,853.46,1.16879885]
[1766223931249,0.87822652,854.39,853.48,1.16879885]
[1766223947258,0.87822652,854.38,853.48,1.16879885]
[1766223953270,0.87822652,854.38,853.49,1.16879885]
[1766223954170,0.87822652,854.38,853.48,1.16879885]
[1766223954371,0.87822652,854.37,853.49,1.16879885]
[1766223958273,0.87822652,854.36,853.5,1.16879885]
[1766223959270,0.87822652,854.35,853.51,1.16879885]
[1766223984197,0.87822652,854.38,853.52,1.16879885]
[1766223984397,0.87822652,854.42,853.56,1.16879885]
[1766223985297,0.87822652,854.42,853.55,1.16879885]
[1766223986294,0.87822652,854.43,853.55,1.16879885]
[1766223987296,0.87822652,854.43,853.39,1.75319827]
[1766223987297,0.87822652,854.43,853.54,1.16879885]
[1766223989295,0.87822652,854.44,853.54,1.16879885]
[1766223992301,0.87822652,854.44,853.53,1.16879885]
[1766223995502,0.87822652,854.45,853.53,1.16879885]
[1766223998511,0.87822652,854.39,853.47,1.16879885]
[1766223998709,0.87822652,854.38,853.46,1.16879885]
[1766224001908,0.87822652,854.38,853.45,1.16879885]
[1766224031423,0.87822652,854.39,853.45,1.16879885]
[1766224045338,0.87822652,854.38,853.45,1.16879885]
[1766224049238,0.87822652,854.38,853.46,1.16879885]
[1766224051446,0.87822652,854.37,853.46,1.16879885]
[1766224053547,0.87822652,854.37,853.47,1.16879885]
[1766224055247,0.87822652,854.36,853.47,1.16879885]
[1766224056544,0.87822652,854.36,853.48,1.16879885]
[1766224057248,0.87822652,854.35,853.48,1.16879885]
[1766224058250,0.87822652,854.34,853.49,1.16879885]
[1766224069766,1.16477475,854.5,853.49,1.16879885]
[1766224070364,0.20373097,854.53,853.34,6.16826559]
[1766224070667,1.17167406,854.5,853.49,1.17156529]
[1766224070868,0.87875554,854.34,853.49,1.17156529]
[1766224071368,1.17167406,854.5,853.49,1.17156529]
[1766224071667,2.91193688,855.26,853.34,4.41506732]
[1766224071967,0.20372918,854.34,853.34,4.41506732]
[1766224072169,0.87875549,854.34,853.49,1.17156522]
[1766224072465,1.08242982,854.34,853.49,1.17156522]
[1766224103894,0.87875549,854.3,853.45,1.17156522]
[1766224104193,0.87875549,854.31,853.45,1.17156522]
[1766224105295,0.87875549,854.31,853.44,1.17156522]
[1766224107197,0.87875549,854.32,853.44,1.17156522]
[1766224111298,0.87875549,854.32,853.43,1.17156522]
[1766224116301,0.87875549,854.33,853.43,1.17156522]
[1766224134417,0.87875549,854.33,853.42,1.17156522]
[1766224145525,0.87875549,854.33,853.43,1.17156522]
[1766224146229,0.20367433,854.34,853.43,1.17156522]
[1766224146431,0.87774125,854.33,853.43,1.17156522]
[1766224150230,0.87774125,854.32,853.43,1.17156522]
[1766224150932,0.87774125,854.33,853.43,1.17156522]
[1766224151332,0.87774125,854.32,853.43,1.17156522]
[1766224158236,0.87774125,854.32,853.44,1.17156522]
[1766224160241,0.87774125,854.31,853.44,1.17156522]
[1766224163243,0.87774125,854.3,853.45,1.17156522]
[1766224202480,0.87774125,854.3,853.46,1.17156522]
[1766224208288,0.87774125,854.3,853.45,1.17156522]
[1766224209085,0.87774125,854.4,853.55,1.17156522]
[1766224209288,0.87774125,854.42,853.53,1.17156522]
[1766224210185,0.87774125,854.43,853.52,1.17156522]
[1766224212290,1.08147341,854.44,853.51,1.17156522]
[1766224214486,1.08147341,854.44,853.5,1.17156522]
[1766224215192,0.20373216,854.44,853.5,1.17156522]
[1766224218195,0.20373216,854.44,853.49,1.17156522]
[1766224223198,0.20373216,854.44,853.48,1.17156522]
[1766224227404,0.87774125,854.41,853.42,1.17156522]
[1766224227802,0.87774125,854.37,853.39,1.17156522]
[1766224228702,0.87774125,854.37,853.38,1.17156522]
[1766224229898,0.87774125,854.35,853.36,1.17156522]
[1766224238305,0.87774125,854.36,853.36,1.17156522]
[1766224252515,0.87774125,854.39,853.39,1.17156522]
[1766224254516,0.87774125,854.39,853.38,1.17156522]
[1766224255118,0.87774125,854.39,853.39,1.17156522]
[1766224255415,0.87774125,854.39,853.38,1.17156522]
[1766224256217,0.87774125,854.39,853.39,1.17156522]
[1766224256514,0.87774125,854.39,853.38,1.17156522]
[1766224257214,0.20373216,854.44,853.38,1.17156522]
[1766224257418,0.87723919,854.39,853.39,1.17156522]
[1766224257917,0.87723919,854.39,853.38,1.17156522]
[1766224258321,0.87723919,854.39,853.39,1.17156522]
[1766224261326,0.87723919,854.38,853.38,1.17156522]
[1766224270533,0.87723919,854.37,853.38,1.17156522]
[1766224270734,0.87723919,854.38,853.38,1.17156522]
[1766224271227,0.87723919,854.37,853.38,1.17156522]
[1766224275231,0.87723919,854.37,853.39,1.17156522]
[1766224276133,0.87723919,854.36,853.39,1.17156522]
[1766224279332,0.87723919,854.36,853.4,1.17156522]
[1766224280236,0.87723919,854.35,853.4,1.17156522]
[1766224283238,0.87723919,854.34,853.41,1.17156522]
[1766224285144,0.87723919,854.33,853.42,1.17156522]
[1766224287245,0.87723919,854.32,853.43,1.17156522]
[1766224293053,0.87723919,854.31,853.43,1.17156522]
[1766224293248,0.87723919,854.24,853.36,1.17156522]
[1766224294155,0.87723919,854.25,853.36,1.17156522]
[1766224294657,0.87723919,854.24,853.35,1.17156522]
[1766224295156,0.87723919,854.24,853.34,4.1763397]
[1766224296152,0.87723919,854.25,853.34,4.1763397]
[1766224298158,0.87723919,854.25,853.34,3.00477448]
[1766224299154,0.87723919,854.26,853.34,3.00477448]
[1766224304158,0.87723919,854.27,853.34,3.00477448]
[1766224311168,0.87723919,854.28,853.34,3.00477448]
[1766224330390,0.87723919,854.28,853.31,1.17156522]
[1766224333389,0.87723919,854.27,853.31,1.17156522]
[1766224338192,0.87723919,854.27,853.32,1.17156522]
[1766224341392,0.87723919,854.26,853.32,1.17156522]
[1766224344399,0.87723919,854.26,853.33,1.17156522]
[1766224344698,0.87723919,854.26,853.32,1.17156522]
[1766224345399,0.87723919,854.25,853.32,1.17156522]
[1766224346201,0.87723919,854.25,853.33,1.17156522]
[1766224349202,0.87723919,854.24,853.34,1.17156522]
[1766224351198,0.87723919,854.23,853.34,1.17156522]
[1766224352303,0.87723919,854.23,853.35,1.17156522]
[1766224353102,0.87723919,854.22,853.36,1.17156522]
[1766224354207,0.87723919,854.21,853.37,1.17156522]
[1766224388037,0.87723919,854.22,853.37,1.17156522]
[1766224394144,0.87723919,854.22,853.4,1.17156522]
[1766224394443,0.87723919,854.25,853.39,1.17156522]
[1766224394638,0.87723919,854.26,853.4,1.17156522]
[1766224395338,0.87723919,854.27,853.4,1.17156522]
[1766224396344,0.87723919,854.27,853.39,1.17156522]
[1766224400244,0.87723919,854.28,853.39,1.17156522]
[1766224403248,0.87723919,854.28,853.38,1.17156522]
[1766224404750,0.87723919,854.28,853.39,1.17156522]
[1766224407252,0.87723919,854.29,853.38,1.17156522]
[1766224419060,0.20375542,854.28,853.38,1.17156522]
[1766224428373,1.08099461,854.28,853.38,1.17156522]
[1766224443287,0.87723919,854.27,853.38,1.17156522]
[1766224448397,0.87723919,854.27,853.39,1.17156522]
[1766224448692,0.87723919,854.27,853.38,1.17156522]
[1766224449299,0.87723919,854.27,853.39,1.17156522]
[1766224450399,0.87723919,854.26,853.39,1.17156522]
[1766224453401,0.87723919,854.25,853.4,1.17156522]
[1766224524972,0.87723919,854.26,853.41,1.17156522]
[1766224579424,0.87723919,854.18,853.33,1.17156522]
[1766224579628,0.87723919,854.13,853.3,2.99575349]
[1766224580129,0.87723919,854.15,853.3,2.99575349]
[1766224581228,0.87723919,854.16,853.3,2.99575349]
[1766224582134,0.87723919,854.17,853.3,2.99575349]
[1766224584030,0.87723919,854.18,853.3,2.99575349]
[1766224584732,0.8778702,854.18,853.3,2.99575349]
[1766224585229,0.8778702,854.19,853.3,2.99575349]
[1766224587032,0.8778702,854.2,853.3,2.99575349]
[1766224589540,0.8778702,854.17,853.3,2.99575349]
[1766224590138,0.8778702,854.18,853.3,2.99575349]
[1766224592339,0.8778702,854.19,853.3,2.99575349]
[1766224595345,0.8778702,854.17,853.3,2.99575349]
[1766224598150,0.8778702,854.18,853.3,2.99575349]
[1766224601254,0.8778702,854.19,853.3,2.99575349]
[1766224602251,0.8778702,854.19,853.12,0.20378466]
[1766224607153,0.8778702,854.2,853.12,0.20378466]
[1766224617462,0.8778702,854.19,853.12,0.20378466]
[1766224619262,2.92918497,855.12,853.12,0.20378466]
[1766224619263,0.20380614,854.04,853.12,0.20378466]
[1766224621766,0.20380614,854.04,853.05,32.57951443]
[1766224623466,0.8778702,854.02,853.05,32.57951443]
[1766224623864,0.8778702,854.02,852.91,1.17156522]
[1766224624264,0.8778702,854.03,852.93,0.20384494]
[1766224627370,1.08167634,854.04,852.93,0.20384494]
[1766224628170,0.8778702,854.03,852.93,0.20384494]
[1766224628371,1.08167634,854.04,852.93,0.20384494]
[1766224632071,0.8778702,854.0,852.93,0.20384494]
[1766224632270,0.8778702,853.93,852.93,0.20384494]
[1766224633171,0.8778702,853.93,852.77,1.17156522]
[1766224633470,0.8778702,853.93,852.84,0.20386942]
[1766224634373,0.8778702,853.94,852.84,0.20386942]
[1766224636368,0.8778702,853.95,852.84,0.20386942]
[1766224637073,0.8778702,853.94,852.84,0.20386942]
[1766224637273,0.8778702,853.95,852.84,0.20386942]
[1766224638174,0.8778702,853.94,852.84,0.20386942]
[1766224638470,0.8778702,853.95,852.84,0.20386942]
[1766224639170,0.8778702,853.94,852.84,0.20386942]
[1766224639369,0.8778702,853.95,852.84,0.20386942]
[1766224641274,0.8778702,853.96,852.84,0.20386942]
[1766224644074,0.8778702,853.95,852.84,0.20386942]
[1766224644275,0.8778702,853.96,852.84,0.20386942]
[1766224646578,0.8778702,853.96,852.75,3.22401044]
[1766224649876,0.20387002,853.79,852.83,0.20387002]
[1766224681304,0.20387002,853.79,852.83,1.37543524]
[1766224682199,0.20387002,853.79,852.84,1.17156522]
[1766224683310,0.20387002,853.79,852.85,1.17156522]
[1766224686211,0.20387002,853.79,852.86,1.17156522]
[1766224688212,0.20387002,853.79,852.83,0.20387002]
[1766224688213,0.20387002,853.79,852.87,1.17156522]
[1766224690415,1.07858788,853.79,852.88,1.17156522]
[1766224691311,0.87471786,853.78,852.89,1.17156522]
[1766224692416,0.87471786,853.77,852.91,1.17156522]
[1766224693312,0.87471786,853.76,852.91,1.17156522]
[1766224704528,0.87471786,853.72,852.87,1.17156522]
[1766224704727,0.87471786,853.71,852.87,1.17156522]
[1766224705027,0.87471786,853.64,852.79,1.17156522]
[1766224705228,0.87471786,853.64,852.75,3.22401044]
[1766224706325,0.67111465,853.63,852.75,3.22401044]
[1766224706524,0.67111465,853.62,852.75,3.22401044]
[1766224706725,0.67111465,853.61,852.75,3.22401044]
[1766224706925,0.67111465,853.6,852.75,3.22401044]
[1766224707125,0.67111465,853.59,852.75,3.22401044]
[1766224707327,0.67111465,853.58,852.75,3.22401044]
[1766224707527,0.67111465,853.57,852.75,3.22401044]
[1766224707822,0.87471786,853.66,852.75,3.22401044]
[1766224707823,0.67111465,853.56,852.75,3.22401044]
[1766224708027,0.67111465,853.55,852.75,3.22401044]
[1766224708227,0.67111465,853.54,852.75,3.22401044]
[1766224708421,0.67111465,853.53,852.75,3.22401044]
[1766224708626,0.67111465,853.52,852.75,3.22401044]
[1766224708827,0.67111465,853.51,852.75,3.22401044]
[1766224709028,0.67111465,853.5,852.75,3.22401044]
[1766224709226,0.67111465,853.49,852.75,3.22401044]
[1766224709430,0.67111465,853.48,852.75,3.22401044]
[1766224709626,0.67111465,853.47,852.75,3.22401044]
[1766224709830,0.67111465,853.46,852.75,3.22401044]
[1766224710031,0.67111465,853.45,852.75,3.22401044]
[1766224710226,0.67111465,853.44,852.75,3.22401044]
[1766224710429,0.67111465,853.43,852.75,3.22401044]
[1766224710725,0.67111465,853.42,852.75,3.22401044]
[1766224710931,0.67111465,853.41,852.75,3.22401044]
[1766224711129,0.67111465,853.4,852.75,3.22401044]
[1766224711331,0.87471786,853.68,852.75,3.22401044]
[1766224714237,0.67025499,853.67,852.75,3.22401044]
[1766224714436,0.67025499,853.66,852.75,3.22401044]
[1766224714633,0.67025499,853.65,852.75,3.22401044]
[1766224714937,0.67025499,853.64,852.75,3.22401044]
[1766224715134,0.67025499,853.63,852.75,3.22401044]
[1766224715333,0.67025499,853.62,852.75,3.22401044]
[1766224715537,0.67025499,853.61,852.75,3.22401044]
[1766224715734,0.67025499,853.6,852.75,3.22401044]